{"text_format":"1","workbook":"xlsx","n_sheets":2,"sheets":["Cover","Tabelle 1"],"not_rendered":{"charts":0,"images":0,"macros":1,"external_links":0,"defined_names":0,"comments":0,"pivot_tables":0},"unopened":[],"bounds":{"document_bytes":16777216,"sheet_cells":100000,"rows_first":2000,"rows_last":500,"rows_between":2000,"halvings":0,"cell_chars":16384,"cell_head_chars":4096},"cells_cut":0,"cells_raw":0,"read":"whole","date_system":"1900"}

{"sheet":"Cover","index":0,"n_rows":23,"n_cols":3,"rows_kept":23,"cut":false,"hidden":false,"merged":[]}
[]
[]
[null,"Excel + VBA"]
[null,"für Ingenieure"]
[null,"8. Auflage"]
[]
[]
[null,"Kapitel",1]
[null,"Thema","Aktionen und Prozeduren"]
[]
[null,"Inhalt","Konvertierungen"]
[]
[]
[]
[]
[]
[]
[null,"Version","1.0"]
[null,"Autor","Harald Nahrstedt"]
[null,"Datum","2025-02-21"]
[]
[]
[null,"Springer Vieweg Verlag"]

{"sheet":"Tabelle 1","index":1,"n_rows":11,"n_cols":4,"rows_kept":11,"cut":false,"hidden":false,"merged":[]}
["Inhalt","Funktion Type","CellType","Bemerkung"]
[{"$f":"\"Dies ist eín Test\"","v":"Dies ist eín Test"},{"$f":"TYPE(A2)","v":2},{"$f":"CellType(A2)","v":"Text"},"mehrere Wörter"]
[{"$f":"\"Buchtitel\"","v":"Buchtitel"},{"$f":"TYPE(A3)","v":2},{"$f":"CellType(A3)","v":"Text"},"ein Wort"]
["222",2,{"$f":"CellType(A4)","v":"Text"},"mit Hochkomma eingegebene Zahl"]
[{"$f":"99","v":99},1,{"$f":"CellType(A5)","v":"Value"},"Ganzzahl"]
[{"$f":"22.3","v":22.3},1,{"$f":"CellType(A6)","v":"Value"},"Dezimalzahl"]
["2023-07-23",1,{"$f":"CellType(A7)","v":"Date"},"Datum"]
["13:23:00",1,{"$f":"CellType(A8)","v":"Time"},"Zeit"]
[null,1,{"$f":"CellType(A9)","v":"Blank"},"kein Inhalt"]
[{"$f":"1=1","v":true},4,{"$f":"CellType(A10)","v":"Logical"},"Logischer Ausdruck"]
[{"$f":"1/0","v":{"$error":"#DIV/0!"}},16,{"$f":"CellType(A11)","v":"Error"},"Division durch Null"]